Workbook

Sheet лист1
A3: Свод изменений к проекту решения Совета народных депутатов "О внесении изменений в решение "О бюджете муниципального образования Красносельское на 2018 год"
H4: тыс. рублей
A5: Показатели | B5: Бюджетные назначения на 1 января 2018 г. (Решение СНД №46 от 20.12.2017г.) | C5: Бюджетные назначения на 1 января 2018г. (Решение СНД №46 от 20.12.2017г.) | D5: Изменения, предусмотренные проектом решения | G5: Бюджетные назначения с учетом проекта решения | H5: Примечание
D6: Увеличение (+) | E6: Уменьшение (-) | F6: Всего
A7: 1 | B7: 2 | C7: 3 | D7: 4 | E7: 5 | F7: 6 | G7: 7 | H7: 8
A8: ДОХОДЫ БЮДЖЕТА | B8: =B24 -> 30344.9 | C8: =C9+C23 -> 30344.9 | D8: =D9+D23 -> 254.8 | E8: =E9+E23 -> 0 | F8: =F9+F23 -> 254.8 | G8: =G9+G23 -> 30599.7
A9: НАЛОГОВЫЕ И НЕНАЛОГОВЫЕ ДОХОДЫ | B9: =B10+B12+B13+B14+B16+B17 -> 18603 | C9: =C10+C12+C13+C14+C16+C17 -> 18603 | D9: =D10+D12+D13+D14+D16+D17 -> 103 | E9: =E10+E11+E12+E13+E14+E15+E16+E17 -> 0 | F9: =F10+F12+F13+F14+F16+F17 -> 103 | G9: =G10+G12+G13+G14+G16+G17 -> 18706
A10: Налог на доходы физических лиц | B10: 1474 | C10: 1474 | D10: 79 | E10: 0 | F10: =D10-E10 -> 79 | G10: 1553 | H10: Доведение до уровня 5,8% кассового исполнения за 2017год
A11: Единый налог на вмененный доход
A12: Единый сельскохозяйственный налог | B12: 95 | C12: 95 | F12: =D12-E12 -> 0 | G12: 95
A13: Налог на имущество физических лиц | B13: 758 | C13: 758 | F13: =D13 -> 0 | G13: 758
A14: Земельный налог | B14: 14696 | C14: 14696 | F14: =D14-E14 -> 0 | G14: 14696
A15: Налог на добычу полезных ископаемых | G15: =C15+F15 -> 0
A16: Прочие налоговые доходы | B16: 10 | C16: 10 | D16: 7 | F16: =D16 -> 7 | G16: 17 | H16: Доведение до уровня кассового исполнения за 2017год
A17: Неналоговые доходы, из них | B17: 1570 | C17: 1570 | D17: 17 | F17: 17 | G17: =G18+G19+G20+G21 -> 1587
A18: доходы от использования имущества, находящегося в государственной и муниципальной собственности | B18: 1555 | C18: 1555 | F18: 0 | G18: 1555
A19: штрафы, санкции, возмещение ущерба | B19: 15 | C19: 15 | D19: 17 | F19: 17 | G19: 32 | H19: Доведение до уровня кассового исполнения за 2017год
A20: доходы от продажи материальных и нематериальных активов | F20: 0
A21: прочие неналоговые доходы | F21: 0
A22: Средства от возврата остатков субсидий, субвенций и иных межбюджетных трансфертов
A23: БЕЗВОЗМЕЗДНЫЕ ПОСТУПЛЕНИЯ | B23: 11741.9 | C23: 11741.9 | D23: 151.8 | E23: 0 | F23: =D23-E23 -> 151.8 | G23: 11893.7 | H23: 151,8 тыс.руб.- Уведомление Финансового управления администрации муниципального образования Юрьев-Польский район №11 от 28.02.2018г.
A24: ИТОГО ДОХОДОВ | B24: =B23+B9 -> 30344.9 | C24: 30344.9 | D24: 254.8 | E24: 0 | F24: 254.8 | G24: 30599.7
A26: РАСХОДЫ БЮДЖЕТА | B26: =B27+B30+B41 -> 30344.9 | C26: =C27+C30+C41 -> 30344.9 | D26: =D27+D30+D41 -> 263.3 | E26: =E27+E30+E41 -> 8.5 | F26: =D26-E26 -> 254.8 | G26: =G27+G30+G41 -> 30599.7
A27: Раздел I. Социально-значимые расходы | B27: =B28+B29 -> 8110 | C27: =C28+C29 -> 8110 | D27: =D28+D29 -> 0 | E27: =E28 -> 0 | F27: =D27-E27 -> 0 | G27: =G28+G29 -> 8110
A28: Заработная плата и начисления на нее (ВР 111,119,121,129) | B28: 8060 | C28: 8060 | F28: =D28-E28 -> 0 | G28: 8060
A29: Социальное обеспечение (ВР 300) | B29: 50 | C29: 50 | F29: =D29-E29 -> 0 | G29: 50
A30: Раздел II. Первоочередные расходы | B30: =B31+B32+B33+B36+B37+B39 -> 22034.9 | C30: =C31+C32+C33+C36+C37+C39 -> 22034.9 | D30: =D31+D32+D33+D36+D37+D39 -> 263.3 | E30: =E31+E32+E33+E36+E37+E39 -> 8.5 | F30: =D30-E30 -> 254.8 | G30: =G31+G32+G33+G36+G37+G39 -> 22289.7
A31: Расходы на обслуживание муниципального долга (ВР 730)
A32: Межбюджетные трансферты общего характера бюджетам бюджетной системы Российской Федерации (ВР 500) | B32: 10318.2 | C32: 10318.2 | F32: =D32-E32 -> 0 | G32: 10318.2
A33: Расходы на первоочередные нужды, из них:
A34: прочие выплаты по заработной плате (ВР 112,122)
A35: иные выплаты персоналу, за исключением фонда оплаты труда (ВР 142)
A36: Иные закупки товаров, работ и услуг для обеспечения муниципальных нужд (ВР 240) | B36: 11472.9 | C36: 11472.9 | D36: 254.8 | E36: 8.5 | F36: =D36-E36 -> 246.3 | G36: 11719.2 | H36: 8,5 тыс.руб.-уточнение вида расхода, 151,8 тыс.руб.- направление средств на вознаграждение старост, 103,0тыс.руб.- направление средст на проведение кадастровых работ, изготовление межевых планов
A37: Иные бюджетные ассигнования (ВР 810,851,852,853) | B37: 70 | C37: 70 | D37: 8.5 | F37: =D37-E37 -> 8.5 | G37: 78.5 | H37: 8,5 тыс.руб.- уточнение вида расхода
A38: Расходы на прочие нужды, из них:
A39: Предоставление субсидий бюджетным, автономным учреждениям и иным некоммерческим организациям (ВР 600) | B39: 173.8 | C39: 173.8 | G39: 173.8
A41: Раздел III. Расходы | B41: =B43 -> 200 | C41: =C43 -> 200 | G41: =G43 -> 200
A42: Увеличение стоимости основных средств ВР 400)
A43: Другие расходы ВР 113,123,831,870) | B43: 200 | C43: 200 | G43: 200
A44: ИТОГО РАСХОДОВ | B44: =B26 -> 30344.9 | C44: =C26 -> 30344.9 | G44: =G26 -> 30599.7
A45: Справочно: на 01.01.2018г. Штатная численность составила 5 ед., фактическая - 5ед.
A46: Расходы на выплату заработной платы с начислениями работникам органов местного самоуправления | B46: 2516.8 | C46: 2516.8 | G46: 2516.8
A48: Профицит (+)/дефицит (-) | B48: =B8-B26 -> 0 | C48: =C8-C26 -> 0 | G48: =G8-G26 -> 0
A49: ИСТОЧНИКИ ФИНАНСИРОВАНИЯ ДЕФИЦИТА БЮДЖЕТА
A50: Итого источников
A51: Изменение остатков средств бюджетов
A52: Разница между полученными и погашенными кредитами от других бюджетов
A53: - получение бюджетных кредитов
A54: - погашение бюджетных кредитов
A55: Разница меду полученными и погашенными кредитами от кредитных организаций
A56: - получение кредитов от кредитных организаций
A57: - погашение кредитов от кредитных организаций
A58: Иные источники
